bitfinex/quotes_ETHUSD_20241123
["timestamp","ask_amount","ask_price","bid_price","bid_amount"]
[1732326318087,0.73584345,3317.4,3315.7,0.076]
[1732326318292,0.7585,3317.7,3315.7,0.076]
[1732326319314,0.01,3318.5,3315.7,0.076]
[1732326319315,0.7585,3317.5,3315.7,0.076]
[1732326320103,0.75077394,3317.7,3315.7,0.076]
[1732326320328,0.15092739,3317.6,3315.7,0.076]
[1732326320493,0.7585,3317.8,3315.7,0.076]
[1732326321012,3.42662949,3319.0,3315.9,0.076]
[1732326321199,0.7585,3318.8,3315.9,0.076]
[1732326321605,0.7585,3318.8,3316.1,0.076]
[1732326321981,0.7585,3318.8,3316.3,0.076]
[1732326322182,0.7585,3318.8,3316.5,0.076]
[1732326324239,0.7585,3318.8,3316.7,0.076]
[1732326324394,0.7585,3318.8,3316.8,0.55]
[1732326324580,0.7585,3318.8,3317.0,0.55]
[1732326324779,0.7585,3318.8,3317.1,0.076]
[1732326326795,0.7585,3318.8,3317.2,0.076]
[1732326328505,0.73907473,3319.0,3317.2,0.076]
[1732326328817,0.73907473,3319.0,3317.1,1.0]
[1732326328818,0.7585,3319.7,3317.3,0.076]
[1732326329416,0.7585,3319.7,3317.4,0.03014316]
[1732326329630,0.7585,3319.7,3317.5,0.076]
[1732326331376,0.55,3319.6,3317.5,0.076]
[1732326331825,0.7585,3319.3,3317.5,0.076]
[1732326332119,3.37585,3319.2,3317.7,0.376]
[1732326332276,0.7585,3319.1,3317.7,0.376]
[1732326332727,0.7585,3319.5,3317.8,0.076]
[1732326333627,2.9096,3320.1,3317.9,0.076]
[1732326333825,0.75128849,3319.6,3318.2,0.3]
[1732326334125,1.36446,3320.0,3318.3,0.076]
[1732326334329,0.7585,3320.0,3318.3,0.076]
[1732326335193,3.15,3319.8,3318.3,0.076]
[1732326335529,3.0,3319.7,3318.3,0.076]
[1732326335744,0.7585,3319.5,3318.3,0.076]
[1732326336692,3.15,3319.3,3318.3,0.076]
[1732326336918,3.7838,3319.1,3318.3,0.076]
[1732326337138,0.7838,3319.1,3318.3,0.076]
[1732326339332,0.37838,3319.1,3318.3,0.076]
[1732326339533,0.7838,3319.4,3318.3,0.076]
[1732326340429,3.7838,3319.4,3318.3,0.076]
[1732326341139,0.7838,3319.4,3318.3,0.076]
[1732326341524,0.28662949,3320.6,3318.3,0.076]
[1732326341525,3.0,3319.7,3318.3,0.076]
[1732326341726,0.615,3319.6,3318.3,0.076]
[1732326341969,0.7838,3319.9,3318.3,0.076]
[1732326342270,6.15,3319.7,3318.3,0.076]
[1732326342639,3.15,3319.7,3318.3,0.076]
[1732326343064,3.0,3319.3,3318.3,0.076]
[1732326343266,3.0,3318.9,3317.8,0.076]
[1732326343470,0.7838,3318.8,3317.8,0.076]
[1732326344500,1.5369141,3318.8,3317.8,0.076]
[1732326346079,0.7531141,3318.8,3317.8,0.076]
[1732326346291,0.7838,3319.9,3317.8,0.076]
[1732326346869,3.0,3319.7,3318.0,0.076]
[1732326347115,3.15,3319.4,3318.0,0.076]
[1732326347407,3.7838,3319.3,3318.0,0.076]
[1732326348170,0.7838,3319.3,3318.0,0.076]
[1732326348570,3.7838,3319.3,3318.0,0.076]
[1732326348769,3.7838,3319.3,3318.0,0.06792307]
[1732326349079,0.69338,3319.2,3318.0,0.06792307]
[1732326349268,3.7838,3319.7,3318.0,0.06792307]
[1732326349666,3.0,3319.5,3318.0,0.06792307]
[1732326349968,6.15,3319.4,3318.0,0.06792307]
[1732326350174,3.0,3319.3,3318.0,0.06792307]
[1732326350411,6.15,3319.3,3318.4,0.00730033]
[1732326350574,3.15,3319.1,3318.4,0.00730033]
[1732326350911,3.15,3318.9,3318.0,0.06792307]
[1732326351093,0.7838,3318.7,3318.0,0.06792307]
[1732326352180,3.0,3318.9,3318.0,0.06792307]
[1732326352525,6.15,3318.6,3317.2,0.0679]
[1732326352675,3.15,3318.6,3317.2,0.0679]
[1732326353011,3.0,3318.5,3317.2,0.0679]
[1732326353217,0.69338,3318.8,3317.2,0.0679]
[1732326353515,0.7574627,3318.7,3317.2,0.0679]
[1732326353686,0.7574627,3318.7,3317.3,0.0679]
[1732326353896,0.7574627,3318.7,3317.3,0.3]
[1732326354217,0.7574627,3318.7,3317.4,0.0679]
[1732326354804,0.73124703,3318.9,3317.4,0.0679]
[1732326355020,0.7838,3319.2,3317.4,0.0679]
[1732326355185,0.7838,3319.2,3317.7,0.3]
[1732326355378,0.7838,3319.9,3317.8,0.0679]
[1732326355621,3.15,3319.8,3317.9,0.0679]
[1732326355916,3.15,3319.8,3318.0,0.0679]
[1732326356080,0.39338,3319.7,3318.0,0.0679]
[1732326356707,3.39338,3319.7,3318.0,0.0679]
[1732326356895,0.8299,3319.6,3318.0,0.0679]
[1732326357215,3.15,3319.4,3318.0,0.0679]
[1732326357426,3.0,3319.3,3318.0,0.0679]
[1732326357631,3.422328,3319.5,3318.0,0.0679]
[1732326358183,0.422328,3319.5,3318.0,0.0679]
[1732326358385,3.0,3319.3,3318.0,0.0679]
[1732326358784,6.15,3319.3,3318.0,0.0679]
[1732326359119,0.55,3319.5,3318.0,0.0679]
[1732326359120,3.0,3319.1,3318.0,0.0679]
[1732326360673,3.73465037,3319.1,3318.0,0.0679]
[1732326360888,0.77145504,3319.0,3318.0,0.0679]
[1732326361376,0.73465037,3319.1,3318.0,0.0679]
[1732326361665,0.8299,3319.6,3318.0,0.0679]
[1732326362766,1.57027371,3319.6,3318.0,0.0679]
[1732326362933,6.15,3319.5,3318.0,0.0679]
[1732326363137,3.92202737,3319.4,3318.0,0.0679]
[1732326363339,3.0,3319.3,3318.0,0.0679]
[1732326365652,0.77202737,3319.4,3318.0,0.0679]
[1732326365857,0.74037371,3319.6,3318.0,0.0679]
[1732326366052,0.8299,3319.9,3318.0,0.3]
[1732326366360,0.8299,3319.9,3318.1,0.0679]
[1732326366762,3.0,3319.8,3318.1,0.0679]
[1732326366961,0.69799,3319.7,3318.2,0.3]
[1732326367191,0.8299,3319.9,3318.5,0.0679]
[1732326367397,1.56944916,3320.2,3318.5,0.0679]
[1732326367585,0.15694492,3320.1,3318.5,0.0679]
[1732326368099,0.15694492,3320.1,3318.8,0.3]
[1732326368395,3.15,3320.4,3317.8,0.3]
[1732326368687,0.75683754,3320.7,3318.4,0.3]
[1732326368864,0.8299,3320.8,3318.8,0.3]
[1732326369062,0.8299,3320.8,3319.2,0.3]
[1732326369262,0.8299,3320.8,3319.3,0.0679]
[1732326369476,0.15688229,3320.7,3319.3,0.0679]
[1732326370305,0.15688229,3320.7,3319.7,0.3]
[1732326370597,0.74649352,3321.3,3320.1,0.3]
[1732326370798,0.8299,3322.0,3320.4,0.0679]
[1732326370973,3.9799,3322.3,3320.4,0.0679]
[1732326371787,0.8299,3322.3,3320.4,0.0679]
[1732326371990,0.36323747,3322.2,3320.4,0.0679]
[1732326372160,0.55,3322.0,3320.4,0.0679]
[1732326372364,0.91323747,3322.0,3320.4,0.0679]
[1732326372606,0.55,3321.8,3320.4,0.0679]
[1732326373907,0.17431375,3321.9,3320.4,0.0679]
[1732326374077,0.8299,3322.1,3320.4,0.0679]
[1732326375190,0.55,3322.0,3320.4,0.0679]
[1732326376271,0.55,3321.8,3320.4,0.0679]
[1732326376473,6.7,3321.8,3320.4,0.0679]
[1732326376699,0.55,3321.6,3320.4,0.0679]
[1732326377007,0.43075,3321.5,3320.4,0.0679]
[1732326377176,0.55,3321.4,3320.4,0.0679]
[1732326377613,0.55,3321.2,3320.0,0.0679]
[1732326378883,1.30436425,3321.2,3320.0,0.0679]
[1732326379195,0.55,3321.0,3320.0,0.0679]
[1732326381293,0.55,3321.0,3317.8,0.03013056]
[1732326381604,0.7575,3320.9,3317.8,0.34336375]
[1732326381808,0.55,3320.6,3317.8,0.34336375]
[1732326382016,0.3699,3320.5,3317.9,0.3]
[1732326382329,0.55,3320.2,3317.9,0.3]
[1732326382926,0.55,3320.2,3317.3,0.33013886]
[1732326382927,0.55,3320.0,3317.3,0.33013886]
[1732326383080,0.355,3319.9,3317.3,0.33013886]
[1732326383280,3.55,3319.8,3317.3,0.3]
[1732326384034,3.55,3319.8,3317.2,0.3]
[1732326384321,0.55,3319.6,3317.2,0.3]
[1732326384495,0.55,3319.6,3317.1,1.3]
[1732326386583,0.55,3319.6,3317.2,0.55]
[1732326386809,0.55,3319.4,3317.2,0.55]
[1732326387223,0.55,3319.6,3317.2,0.55]
[1732326389015,0.788,3319.5,3317.2,0.55]
[1732326389322,0.55,3319.4,3317.1,1.3]
[1732326389496,0.788,3319.3,3317.3,0.3]
[1732326389892,0.788,3319.8,3317.5,0.3]
[1732326390092,0.15531089,3319.7,3317.5,0.3]
[1732326390523,3.149,3319.6,3317.1,1.0]
[1732326390717,3.0,3319.5,3317.1,1.0]
[1732326390993,0.788,3319.4,3317.1,1.0]
[1732326391189,0.55,3319.0,3317.1,1.0]
[1732326391614,0.55,3318.8,3317.1,1.0]
[1732326391818,0.55,3318.6,3317.1,1.0]
[1732326395736,0.788,3318.5,3317.1,1.0]
[1732326395893,0.55,3318.4,3317.1,1.0]
[1732326396289,0.55,3318.2,3317.1,1.0]
[1732326396693,3.0,3318.0,3317.1,1.0]
[1732326397034,0.7523,3317.8,3317.1,1.0]
[1732326398022,0.55,3317.7,3317.1,0.6634]
[1732326398339,0.55,3317.5,3314.8,0.3]
[1732326398493,0.77652711,3318.5,3314.8,0.3]
[1732326398494,4.3023,3317.7,3314.8,0.3]
[1732326398692,3.55,3317.7,3314.8,0.3]
[1732326398893,0.55,3317.4,3314.8,0.33016164]
[1732326399331,0.55,3317.4,3314.8,0.03016164]
[1732326400042,0.55,3317.4,3314.8,0.33016161]
[1732326400245,0.7523,3317.4,3314.9,0.55]
[1732326400530,0.55,3317.5,3314.8,0.3]
[1732326400531,0.55,3317.3,3314.8,0.3]
[1732326400749,0.55,3317.1,3314.4,0.3]
[1732326400951,0.55,3317.1,3314.0,0.3]
[1732326401111,0.55,3317.1,3314.1,0.0301646]
[1732326401909,0.55,3316.9,3314.1,0.03016602]
[1732326402145,0.55,3316.7,3314.1,0.03016602]
[1732326403004,0.55,3316.7,3314.2,0.3]
[1732326403206,0.7523,3316.6,3314.4,0.3]
[1732326403433,0.7523,3316.4,3314.4,0.3]
[1732326404247,0.7523,3316.4,3313.8,0.33016889]
[1732326404624,0.7523,3316.4,3314.2,0.3]
[1732326405429,0.7523,3316.4,3314.2,0.33016885]
[1732326405643,0.7523,3317.1,3314.4,0.3]
[1732326405949,0.55,3317.0,3314.5,0.03016558]
[1732326406239,0.55,3317.0,3314.6,0.55]
[1732326406440,0.63212121,3318.1,3314.6,0.55]
[1732326406441,0.7523,3316.9,3314.6,0.55]
[1732326406744,0.7523,3316.7,3314.5,3.3]
[1732326406923,0.7523,3316.7,3314.5,0.3]
[1732326407251,0.7523,3316.7,3314.5,3.3]
[1732326407479,0.7523,3316.7,3314.6,0.03016645]
[1732326407748,0.7523,3316.7,3314.7,0.3]
[1732326407947,0.7523,3316.7,3314.8,0.85]
[1732326408144,0.7523,3316.7,3314.9,0.03016381]
[1732326408705,1.50427896,3316.7,3314.9,0.03016381]
[1732326408913,0.8273,3317.2,3314.9,0.03016381]
[1732326409732,0.8273,3317.2,3315.0,0.3]
[1732326409976,0.8273,3318.0,3315.8,3.0]
[1732326410252,0.8273,3318.0,3315.1,0.03015953]
[1732326410452,0.8273,3318.0,3315.6,0.3]
[1732326410906,0.8273,3318.0,3315.7,0.03015425]
[1732326411710,0.8273,3318.0,3315.7,0.58015425]
[1732326412141,0.8273,3318.0,3315.8,0.3]
[1732326412345,0.8273,3318.0,3315.9,0.88015333]
[1732326412557,1.5634169,3318.0,3315.9,0.88015333]
[1732326412710,0.15634169,3317.9,3315.9,0.85]
[1732326414510,0.15634169,3317.9,3315.9,0.3]
[1732326414915,1.3773,3317.8,3315.9,0.3]
[1732326415731,0.8273,3317.8,3315.7,0.3]
[1732326415934,0.15336417,3317.7,3315.7,0.3]
[1732326416155,0.8273,3317.8,3315.7,0.3]
[1732326416361,0.8273,3317.8,3315.9,0.3]
[1732326416671,0.8273,3317.8,3315.9,0.33015417]
[1732326416835,0.8273,3317.8,3315.9,0.3]
[1732326417281,0.8273,3317.8,3316.1,0.3]
[1732326418338,0.8273,3317.8,3315.9,0.3]
[1732326418969,0.807,3318.1,3316.1,0.3]
[1732326419176,0.807,3318.1,3316.3,0.3]
[1732326420976,0.807,3318.1,3316.4,0.55]
[1732326421336,0.807,3318.1,3316.3,0.3]
[1732326421748,3.956,3318.5,3315.8,0.3]
[1732326421943,0.807,3318.3,3315.8,3.3]
[1732326422253,0.807,3318.3,3315.8,0.33015278]
[1732326422447,0.807,3318.1,3315.8,0.3]
[1732326422942,0.807,3318.0,3314.9,0.01]
[1732326423272,0.3807,3317.9,3315.3,0.3]
[1732326423471,0.807,3318.0,3315.4,0.03015364]
[1732326423781,0.03015371,3317.9,3315.3,0.2938753]
[1732326424161,0.03015371,3317.9,3315.4,0.03015363]
[1732326425250,0.03015371,3317.9,3315.4,0.04015363]
[1732326425445,0.03015371,3317.9,3315.4,0.05015363]
[1732326426166,0.19026505,3317.9,3315.4,0.05015363]
[1732326427166,0.19026505,3317.9,3315.9,3.0]
[1732326427388,0.19026505,3317.9,3316.0,0.31790027]
[1732326427606,0.807,3317.8,3316.0,0.2877506]
[1732326427903,0.807,3317.6,3316.2,0.2877506]
[1732326428044,0.76395968,3318.1,3316.2,0.2877506]
[1732326428045,0.83715371,3317.5,3316.2,0.2877506]
[1732326428443,0.83715371,3317.5,3314.2,0.02]
[1732326428444,3.149,3317.4,3314.2,0.01]
[1732326428649,0.807,3317.2,3314.3,0.3]
[1732326428954,3.34806908,3317.3,3314.4,0.03016287]
[1732326428955,0.807,3317.0,3314.4,0.03016287]
[1732326429149,0.807,3316.8,3314.4,0.03016287]
[1732326429461,0.807,3316.6,3314.3,0.3]
[1732326429646,0.03015371,3316.5,3314.4,0.03016486]
[1732326429845,0.807,3316.4,3314.4,0.3]
[1732326430049,0.03015371,3316.3,3314.4,0.33016486]
[1732326430781,0.03015371,3316.3,3314.6,0.3]
[1732326431380,0.31081629,3318.1,3315.0,0.3]
[1732326431381,0.807,3316.7,3315.0,0.3]
[1732326431689,0.807,3316.7,3315.2,0.3]
[1732326431875,0.807,3316.7,3315.3,0.03015974]
[1732326432652,0.73162388,3316.7,3315.5,0.3]
[1732326433054,0.03015371,3317.7,3315.7,0.3]
[1732326434367,3.03015371,3318.0,3315.7,0.3]
[1732326435065,0.03015371,3318.0,3315.0,0.3]
[1732326435277,0.03015371,3318.0,3315.6,0.3]
[1732326435488,0.03015371,3318.0,3315.8,0.3]
[1732326435689,0.807,3317.9,3315.8,0.3]
[1732326435858,0.83715371,3317.8,3315.8,0.3]
[1732326436782,0.83715371,3317.8,3316.0,0.3]
[1732326436988,0.83715371,3317.8,3316.2,0.3]
[1732326439467,0.83715371,3317.8,3315.7,0.3]
[1732326439672,1.57742786,3317.8,3316.2,0.3]
[1732326439870,0.15774279,3317.7,3316.4,0.3]
[1732326440071,0.03015371,3317.6,3316.4,0.3]
[1732326440583,0.03015371,3317.6,3316.3,0.0754]
[1732326440584,0.03015371,3317.6,3316.3,0.3754]
[1732326441670,0.03015371,3317.6,3316.4,0.6254]
[1732326441869,0.03015371,3317.6,3316.5,0.3]
[1732326443571,0.1878965,3317.7,3316.5,0.3]
[1732326444528,0.1878965,3317.7,3316.7,0.3]
[1732326444665,0.807,3317.8,3316.9,0.3]
[1732326444868,0.7535,3318.7,3316.9,0.3]
[1732326445119,0.03015371,3318.6,3316.9,0.3]
[1732326445275,0.03015371,3318.6,3317.1,0.3]
[1732326446293,0.7535,3319.1,3317.6,0.0754]
[1732326446494,0.03015371,3319.0,3317.9,0.3]
[1732326446908,0.03015371,3319.0,3317.8,0.0754]
[1732326447117,0.7535,3319.1,3317.8,0.0754]
[1732326447714,0.03015371,3319.0,3317.8,0.0754]
[1732326447921,0.03015371,3319.0,3317.9,0.55]
[1732326448368,0.03015371,3319.0,3317.8,0.0754]
[1732326449103,0.78365371,3319.1,3317.9,0.55]
[1732326449270,0.03015371,3319.3,3318.0,0.0754]
[1732326449466,0.15465712,3319.2,3318.0,0.0754]
[1732326450720,0.7535,3319.8,3318.1,0.2996]
[1732326450915,0.03015371,3319.7,3318.3,0.0754]
[1732326451204,0.03015371,3319.7,3318.4,0.55]
[1732326452313,0.03015371,3319.7,3318.5,0.0754]
[1732326452525,0.03015371,3320.0,3318.5,0.0754]
[1732326452674,0.03015371,3320.0,3318.6,0.0754]
[1732326453509,0.03015371,3320.1,3318.8,0.0754]
[1732326454081,0.78365371,3321.3,3318.8,0.0754]
[1732326454282,0.78365371,3321.3,3318.9,0.55]
[1732326454525,0.7535,3321.1,3318.9,0.09404759]
[1732326454812,0.7535,3320.9,3318.9,0.09404759]
[1732326455118,0.78365371,3320.8,3319.0,0.55]
[1732326456077,0.78365371,3320.8,3319.1,0.0754]
[1732326456278,0.78365371,3320.8,3319.2,0.55]
[1732326457119,0.78365371,3320.8,3319.3,0.0754]
[1732326457326,0.78365371,3320.8,3319.4,0.55]
[1732326457998,0.78365371,3320.8,3319.5,0.0754]
[1732326458406,0.03015371,3320.8,3319.5,0.0754]
[1732326458610,0.78625587,3321.1,3319.5,0.0754]
[1732326458908,0.15494559,3321.0,3319.5,0.0754]
[1732326459113,0.03015371,3320.9,3319.5,0.0754]
[1732326459583,0.03015371,3320.9,3319.4,0.55]
[1732326459785,0.03015371,3320.9,3319.7,0.0754]
[1732326460856,0.7632,3321.5,3319.8,0.03011904]
[1732326460984,0.03015371,3321.4,3319.9,0.0754]
[1732326461917,0.03015371,3321.4,3320.1,0.0754]
[1732326464431,0.18305528,3321.4,3320.1,0.0754]
[1732326465096,0.03015371,3321.4,3320.1,0.0754]
[1732326465283,0.03015371,3321.5,3320.2,0.55]
[1732326465488,0.03015371,3321.5,3320.4,0.55]
[1732326466291,0.03015371,3321.7,3320.4,0.55]
[1732326466720,3.03015371,3321.7,3320.4,0.55]
[1732326466929,0.37933537,3321.6,3320.4,0.55]
[1732326467130,0.03015371,3321.5,3320.4,0.55]
[1732326467427,0.03015371,3321.5,3320.3,0.0754]
[1732326468144,0.03015371,3321.7,3320.3,0.0754]
[1732326468429,0.03015371,3321.7,3320.5,0.0754]
[1732326469118,0.03015371,3321.7,3321.0,0.01864759]
[1732326469315,0.15484878,3321.6,3321.0,0.01864759]
[1732326469529,0.03015371,3321.5,3321.0,0.01864759]
[1732326472337,0.03015371,3321.5,3321.1,0.0754]
[1732326472571,0.03015371,3321.7,3321.1,0.0754]
[1732326473246,0.18500249,3321.7,3321.1,0.0754]
[1732326474644,0.18500249,3321.7,3321.0,0.01864759]
[1732326474849,0.7632,3321.6,3321.0,0.01864759]
[1732326475083,0.03015371,3321.5,3321.0,0.01864759]
[1732326476581,0.03015371,3321.6,3321.0,0.01864759]
[1732326478280,0.8145,3322.1,3321.0,0.01864759]
[1732326478584,0.03015371,3322.0,3321.0,0.01864759]
[1732326478756,0.03015371,3322.0,3321.0,0.31824759]
[1732326484178,0.03015371,3322.0,3321.0,1.06562602]
[1732326484380,0.03015371,3322.0,3321.0,0.31824759]
[1732326484580,0.8145,3321.9,3321.0,0.01864759]
[1732326484803,0.8145,3321.7,3321.0,0.01864759]
[1732326485014,0.8145,3321.5,3321.0,0.01864759]
[1732326485174,0.03015371,3321.4,3321.0,0.01864759]
[1732326486109,0.8145,3321.8,3321.1,0.2996]
[1732326486315,0.03015371,3321.7,3321.1,0.2996]
[1732326487085,0.03015371,3321.7,3321.0,0.01864759]
[1732326487538,0.8145,3321.6,3321.0,0.01864759]
[1732326487849,0.84465371,3321.5,3321.0,0.01864759]
[1732326488767,0.55,3321.4,3321.0,0.01864759]
[1732326488908,0.8157,3321.2,3321.0,0.01864759]
[1732326489103,0.84585371,3321.1,3321.0,0.01864759]
[1732326490852,0.03015371,3321.1,3321.0,0.39364759]
[1732326491070,0.03015371,3322.4,3321.2,0.2996]
[1732326491216,0.03015371,3322.4,3321.6,0.2996]
[1732326491951,0.03015371,3322.4,3321.6,3.2996]
[1732326492156,0.03015371,3322.4,3321.6,0.2996]
[1732326492457,0.03015371,3322.6,3321.8,0.2996]
[1732326493758,0.03015371,3322.6,3322.1,0.2996]
[1732326494664,0.8157,3323.8,3322.1,0.375]
[1732326494907,0.8157,3324.3,3321.3,1.18746448]
[1732326494908,0.03015371,3323.7,3322.9,0.2996]
[1732326495062,0.03015371,3324.2,3323.3,0.2996]
[1732326495262,0.03015371,3324.2,3323.6,0.2996]
[1732326496003,0.03015371,3324.2,3323.6,3.2996]
[1732326496189,0.03015371,3324.2,3323.8,0.2996]
[1732326496396,0.03015371,3324.2,3323.8,3.2996]
[1732326496595,0.8254,3325.1,3323.8,3.2996]
[1732326496766,0.03015371,3325.0,3323.8,0.2996]
[1732326496965,0.03015371,3325.0,3323.5,0.0754]
[1732326497496,0.8254,3324.3,3321.7,0.0754]
[1732326497664,0.8254,3324.1,3321.7,0.0754]
[1732326497866,0.55,3323.8,3321.7,0.0754]
[1732326498167,0.85555371,3323.7,3321.7,0.0754]
[1732326499001,0.85555371,3323.7,3323.3,0.01864759]
[1732326503481,0.03015371,3323.7,3323.3,0.01864759]
[1732326503681,0.03015371,3323.9,3323.3,0.01864759]
[1732326504122,0.03015371,3323.9,3323.4,3.0]
[1732326504324,0.03015371,3324.3,3323.3,0.09404759]
[1732326504491,0.03015371,3324.3,3323.6,3.0]
[1732326505424,0.03015371,3324.3,3323.3,0.09404759]
[1732326505611,0.03015371,3324.3,3323.6,3.0]
[1732326505819,0.03015371,3324.3,3323.3,0.09404759]
[1732326505991,0.03015371,3324.3,3323.7,3.0]
[1732326506525,0.03015371,3324.3,3323.3,0.09404759]
[1732326506724,0.03015371,3324.3,3323.7,3.0]
[1732326506937,0.03015371,3324.3,3323.8,0.2996]
[1732326507221,0.03015371,3324.3,3324.0,3.2996]
[1732326507438,0.03015371,3324.6,3324.0,0.2996]
[1732326507751,0.03015371,3324.6,3324.0,3.2996]
[1732326508209,0.03015371,3324.6,3324.0,0.2996]
[1732326508524,0.03015371,3324.6,3323.3,0.09404759]
[1732326508525,0.03015371,3324.6,3324.1,0.2996]
[1732326508904,0.8254,3325.0,3324.1,0.2996]
[1732326508905,0.03015371,3324.9,3324.1,0.2996]
[1732326510519,0.03015371,3324.9,3323.7,0.2996]
[1732326510717,0.03015371,3324.9,3324.1,0.2996]
[1732326511935,0.8254,3324.8,3323.9,0.2996]
[1732326512144,0.8254,3324.6,3323.9,0.2996]
[1732326512425,0.03015371,3324.5,3323.9,0.2996]
[1732326512626,0.8254,3324.4,3323.9,0.2996]
[1732326512931,0.03015371,3324.3,3323.7,0.2996]
[1732326514040,0.03015371,3324.3,3323.5,0.2996]
[1732326515053,0.03015371,3324.3,3323.3,0.01864759]
[1732326515247,0.03015371,3324.3,3323.6,0.2996]
[1732326515428,0.8254,3324.7,3323.6,0.2996]
[1732326515741,0.8254,3324.5,3323.6,0.2996]
[1732326515946,0.8254,3324.3,3323.6,0.2996]
[1732326516101,0.85555371,3324.2,3323.6,0.2996]
[1732326516732,0.85555371,3324.2,3323.3,0.01864759]
[1732326517006,0.7802,3324.0,3323.3,0.01864759]
[1732326517236,0.7802,3323.8,3323.3,0.01864759]
[1732326517411,0.81035371,3323.7,3323.3,0.01864759]
[1732326520052,0.55,3323.6,3323.3,0.01864759]
[1732326520341,0.85485371,3323.5,3323.3,0.01864759]
[1732326522456,1.10101009,3323.4,3323.3,0.01864759]
[1732326522747,0.8247,3323.4,3323.3,0.01864759]
[1732326529989,0.85485371,3323.4,3323.3,0.01864759]
[1732326532052,1.40485371,3323.4,3323.3,0.01864759]
[1732326532255,0.8247,3323.0,3322.0,3.2996]
[1732326532586,0.03015371,3322.9,3322.0,3.2996]
[1732326532786,0.03015371,3322.9,3322.0,0.2996]
[1732326533084,0.8247,3322.8,3322.0,0.2996]
[1732326533247,0.85485371,3322.7,3322.0,0.2996]
[1732326533449,0.85485371,3322.7,3321.3,0.0941]
[1732326533771,0.85485371,3322.7,3321.3,0.3937]
[1732326534679,0.85485371,3322.7,3321.6,3.0]
[1732326534890,0.85485371,3322.7,3321.3,0.3937]
[1732326535044,0.85485371,3322.7,3321.6,3.0]
[1732326536092,0.85485371,3322.7,3321.3,0.3937]
[1732326536593,0.85485371,3322.7,3321.6,3.0]
[1732326537194,0.85485371,3322.7,3321.3,0.3937]
[1732326537396,0.85485371,3322.7,3321.6,3.0]
[1732326537592,0.85485371,3322.7,3321.3,0.3937]
[1732326538101,0.85485371,3322.7,3321.6,3.0]
[1732326539099,0.85485371,3322.7,3321.3,0.3937]
[1732326539597,0.01,3322.6,3320.6,0.2996]
[1732326539762,0.7718,3322.1,3320.4,0.3937]
[1732326539970,0.7718,3321.9,3320.4,0.3937]
[1732326540299,0.7718,3321.7,3320.4,0.3937]
[1732326540510,0.03015371,3321.6,3320.6,0.2996]
[1732326540802,0.03015371,3321.6,3320.8,0.2996]
[1732326541102,0.03015371,3321.9,3321.0,3.2996]
[1732326541265,0.01,3323.3,3321.2,0.2996]
[1732326541266,0.7718,3322.3,3321.2,0.2996]
[1732326541464,0.03015371,3322.2,3321.4,3.0]
[1732326541779,0.03015371,3322.2,3321.4,0.2996]
[1732326542575,0.03015371,3322.2,3321.6,0.2996]
[1732326544090,0.03015371,3322.2,3321.2,0.2996]
[1732326544903,0.03015371,3322.2,3321.4,0.2996]
[1732326545291,0.03015371,3322.2,3321.6,0.2996]
[1732326545494,0.03015371,3322.5,3321.6,0.2996]
[1732326547012,0.03015371,3322.5,3322.0,0.2996]
[1732326547168,0.03015371,3322.9,3322.0,1.85093718]
[1732326547366,0.03015371,3322.9,3322.3,3.0]
[1732326547670,0.03015371,3322.9,3322.4,0.2996]
[1732326548610,0.03015371,3322.9,3322.2,0.2996]
[1732326549622,0.03015371,3322.9,3322.3,3.2996]
[1732326549972,0.03015371,3322.9,3322.3,0.2996]
[1732326550198,0.03015371,3322.9,3322.3,3.2996]
[1732326550409,0.03015371,3322.9,3322.3,0.2996]
[1732326550612,0.03015371,3322.9,3322.4,0.2996]
[1732326551615,0.03015371,3323.2,3322.8,0.2996]
[1732326551788,0.7718,3323.6,3322.8,0.2996]
[1732326551983,0.03015371,3323.5,3322.8,0.2996]
[1732326552330,0.03015371,3323.5,3322.8,3.2996]
[1732326552622,0.03015371,3323.5,3322.6,0.2996]
[1732326552991,0.03015371,3323.5,3322.6,3.2996]
[1732326553389,0.03015371,3323.5,3322.6,0.2996]
[1732326553601,0.03015371,3323.5,3322.6,3.2996]
[1732326553932,0.03015371,3323.5,3322.7,0.2996]
[1732326554798,0.7718,3323.4,3322.7,0.2996]
[1732326554998,0.03015371,3323.3,3322.4,0.2996]
[1732326555300,0.03015371,3323.3,3322.7,0.2996]
[1732326556634,0.7718,3323.4,3322.7,0.2996]
[1732326557344,0.7718,3323.4,3322.4,0.2996]
[1732326557543,0.7718,3323.4,3322.7,0.2996]
[1732326558535,0.7718,3323.4,3322.4,0.2996]
[1732326558742,0.7718,3323.4,3322.7,0.2996]
[1732326559749,0.7718,3323.4,3322.8,0.2996]
[1732326560798,0.7718,3323.4,3322.4,0.2996]
[1732326561725,0.7718,3323.4,3322.5,0.2996]
[1732326562940,0.7718,3323.4,3321.9,0.0941]
[1732326562941,0.7718,3323.4,3322.4,0.2996]
[1732326563111,0.7718,3323.4,3322.6,0.2996]
[1732326563297,0.7718,3323.4,3322.6,3.2996]
[1732326563627,0.7993,3324.7,3323.0,0.2996]
[1732326563825,0.8093,3324.5,3323.0,0.2996]
[1732326564036,0.7993,3324.3,3323.0,0.2996]
[1732326564233,0.7993,3324.1,3323.0,0.2996]
[1732326564430,0.27711364,3324.0,3323.0,0.2996]
[1732326564653,0.7993,3323.9,3322.9,0.2996]